[Event "Early-Titled-Tuesday-Blitz-October-17-2023"]
[Site "Chess.com"]
[Date "2023.10.17"]
[Round "2"]
[White "masterofpuppets2"]
[Black "pirulillo"]
[Result "0-1"]
[WhiteElo "2506"]
[BlackElo "2329"]
[TimeControl "180+1"]
[EndTime "8:20:00 PDT"]
[Termination "pirulillo won by checkmate"]

1. d4 {[%clk 0:03:00.9]} 1... Nf6 {[%clk 0:02:56.5]} 2. c4 {[%clk 0:03:01.2]}
2... g6 {[%clk 0:02:56.5]} 3. f3 {[%clk 0:03:01.4]} 3... Bg7 {[%clk 0:02:55.8]}
4. e4 {[%clk 0:03:01.1]} 4... d6 {[%clk 0:02:56.3]} 5. Nc3 {[%clk 0:03:01.7]}
5... O-O {[%clk 0:02:52.4]} 6. Be3 {[%clk 0:03:02.2]} 6... c5 {[%clk 0:02:45.9]}
7. Nge2 {[%clk 0:03:02.1]} 7... cxd4 {[%clk 0:02:43.7]} 8. Nxd4 {[%clk
0:03:02.1]} 8... Nc6 {[%clk 0:02:42.2]} 9. Nc2 {[%clk 0:03:02.4]} 9... Be6
{[%clk 0:02:29.6]} 10. Qd2 {[%clk 0:03:02.5]} 10... Qa5 {[%clk 0:02:18.8]} 11.
Nd5 {[%clk 0:02:46.6]} 11... Qxd2+ {[%clk 0:02:17.9]} 12. Kxd2 {[%clk
0:02:47.5]} 12... Bxd5 {[%clk 0:02:13.8]} 13. exd5 {[%clk 0:02:24.9]} 13... Ne5
{[%clk 0:02:09.4]} 14. Rc1 {[%clk 0:02:11.4]} 14... Rfc8 {[%clk 0:02:06.3]} 15.
b3 {[%clk 0:02:10.6]} 15... b5 {[%clk 0:02:00.4]} 16. Nd4 {[%clk 0:01:48.6]}
16... bxc4 {[%clk 0:01:55.6]} 17. bxc4 {[%clk 0:01:49.5]} 17... Nfd7 {[%clk
0:01:52.8]} 18. Be2 {[%clk 0:01:45.7]} 18... Nb6 {[%clk 0:01:47.1]} 19. c5
{[%clk 0:01:31.2]} 19... dxc5 {[%clk 0:01:39.3]} 20. Nb5 {[%clk 0:01:30.9]}
20... Nxd5 {[%clk 0:01:26.5]} 21. Rxc5 {[%clk 0:01:30]} 21... Nxe3 {[%clk
0:01:22]} 22. Rxc8+ {[%clk 0:01:29.2]} 22... Rxc8 {[%clk 0:01:20.8]} 23. Kxe3
{[%clk 0:01:30.1]} 23... a6 {[%clk 0:01:18.3]} 24. Nd4 {[%clk 0:01:22.9]} 24...
Nc4+ {[%clk 0:01:07.6]} 25. Bxc4 {[%clk 0:01:02.9]} 25... Rxc4 {[%clk
0:01:08.5]} 26. Nb3 {[%clk 0:01:03.4]} 26... Rc2 {[%clk 0:01:00]} 27. Rd1 {[%clk
0:01:01.5]} 27... f5 {[%clk 0:00:53.3]} 28. Rd2 {[%clk 0:00:51.7]} 28... Bh6+
{[%clk 0:00:48.8]} 29. f4 {[%clk 0:00:52]} 29... Rxd2 {[%clk 0:00:48.9]} 30.
Nxd2 {[%clk 0:00:52.9]} 30... e5 {[%clk 0:00:48.9]} 31. g3 {[%clk 0:00:53]}
31... Kf7 {[%clk 0:00:42.4]} 32. Nb3 {[%clk 0:00:51.8]} 32... exf4+ {[%clk
0:00:40.6]} 33. gxf4 {[%clk 0:00:52.1]} 33... Bf8 {[%clk 0:00:40.6]} 34. Na5
{[%clk 0:00:45.4]} 34... Ke6 {[%clk 0:00:39.5]} 35. Nb7 {[%clk 0:00:43.4]} 35...
Kd7 {[%clk 0:00:36.8]} 36. Kd4 {[%clk 0:00:39.6]} 36... Kc7 {[%clk 0:00:33.1]}
37. Na5 {[%clk 0:00:38.2]} 37... Bg7+ {[%clk 0:00:31.7]} 38. Kd5 {[%clk
0:00:35.6]} 38... Kb6 {[%clk 0:00:32.2]} 39. Nc4+ {[%clk 0:00:27.3]} 39... Kb5
{[%clk 0:00:30.1]} 40. Ne5 {[%clk 0:00:23.1]} 40... Ka4 {[%clk 0:00:27]} 41. Nd3
{[%clk 0:00:18.2]} 41... Ka3 {[%clk 0:00:25.7]} 42. h4 {[%clk 0:00:15.3]} 42...
a5 {[%clk 0:00:23.7]} 43. Kc4 {[%clk 0:00:15.1]} 43... Kxa2 {[%clk 0:00:22]} 44.
Nc5 {[%clk 0:00:15.5]} 44... Ka3 {[%clk 0:00:20.5]} 45. Kb5 {[%clk 0:00:14.9]}
45... Bf6 {[%clk 0:00:19.5]} 46. Ne6 {[%clk 0:00:14]} 46... Bxh4 {[%clk
0:00:18.4]} 47. Nf8 {[%clk 0:00:14.5]} 47... Bg3 {[%clk 0:00:17.1]} 48. Nxh7
{[%clk 0:00:15]} 48... Bxf4 {[%clk 0:00:17]} 49. Nf6 {[%clk 0:00:15.9]} 49...
Bd2 {[%clk 0:00:17.6]} 50. Nd5 {[%clk 0:00:14.9]} 50... Kb2 {[%clk 0:00:17.3]}
51. Nb6 {[%clk 0:00:14.6]} 51... f4 {[%clk 0:00:17]} 52. Nc4+ {[%clk 0:00:15.1]}
52... Kc2 {[%clk 0:00:15.4]} 53. Ne5 {[%clk 0:00:15.6]} 53... g5 {[%clk
0:00:14.9]} 54. Kc4 {[%clk 0:00:15.4]} 54... Bc3 {[%clk 0:00:14.9]} 55. Ng4
{[%clk 0:00:15]} 55... a4 {[%clk 0:00:15.2]} 56. Kb5 {[%clk 0:00:14.1]} 56... a3
{[%clk 0:00:15.2]} 57. Kc4 {[%clk 0:00:15]} 57... a2 {[%clk 0:00:13.6]} 58. Kd5
{[%clk 0:00:15.9]} 58... a1=Q {[%clk 0:00:13.8]} 59. Ke4 {[%clk 0:00:16.8]}
59... Qe1+ {[%clk 0:00:13]} 60. Kf5 {[%clk 0:00:17.7]} 60... f3 {[%clk
0:00:10.8]} 61. Kg6 {[%clk 0:00:18.6]} 61... f2 {[%clk 0:00:11]} 62. Kh5 {[%clk
0:00:19.5]} 62... f1=Q {[%clk 0:00:11.1]} 63. Kg6 {[%clk 0:00:20.4]} 63... Qg3
{[%clk 0:00:11.3]} 64. Kh5 {[%clk 0:00:21.3]} 64... Qxg4+ {[%clk 0:00:10.5]} 65.
Kg6 {[%clk 0:00:22.2]} 65... Qff5+ {[%clk 0:00:10.3]} 66. Kh6 {[%clk 0:00:21.2]}
66... Qh4# {[%clk 0:00:09.9]} 0-1

[Event "Early-Titled-Tuesday-Blitz-October-17-2023"]
[Site "Chess.com"]
[Date "2023.10.17"]
[Round "2"]
[White "Alexander_Donchenko"]
[Black "Keeper0416"]
[Result "1-0"]
[WhiteElo "2872"]
[BlackElo "2590"]
[TimeControl "180+1"]
[EndTime "8:20:01 PDT"]
[Termination "Alexander_Donchenko won by resignation"]

1. Nf3 {[%clk 0:03:00.9]} 1... c5 {[%clk 0:02:54.7]} 2. c4 {[%clk 0:03:00.5]}
2... Nc6 {[%clk 0:02:54.6]} 3. Nc3 {[%clk 0:03:00.1]} 3... g6 {[%clk 0:02:52]}
4. e3 {[%clk 0:02:59.9]} 4... Nf6 {[%clk 0:02:50.8]} 5. d4 {[%clk 0:03:00.2]}
5... cxd4 {[%clk 0:02:51.4]} 6. exd4 {[%clk 0:03:01.1]} 6... d5 {[%clk
0:02:51.5]} 7. cxd5 {[%clk 0:03:02]} 7... Nxd5 {[%clk 0:02:52.4]} 8. Qb3 {[%clk
0:03:01.5]} 8... e6 {[%clk 0:02:36]} 9. Bb5 {[%clk 0:02:59.9]} 9... Bg7 {[%clk
0:02:26.7]} 10. O-O {[%clk 0:02:58.2]} 10... O-O {[%clk 0:02:24.3]} 11. Bxc6
{[%clk 0:02:58]} 11... bxc6 {[%clk 0:02:24]} 12. Re1 {[%clk 0:02:58.1]} 12...
Qb6 {[%clk 0:02:14.8]} 13. Qc2 {[%clk 0:02:34.8]} 13... Nb4 {[%clk 0:01:50.6]}
14. Qd1 {[%clk 0:02:34.1]} 14... Ba6 {[%clk 0:01:49.2]} 15. Na4 {[%clk
0:02:16.2]} 15... Qb5 {[%clk 0:01:33.9]} 16. Nc5 {[%clk 0:02:13.2]} 16... Nd3
{[%clk 0:01:34.1]} 17. a4 {[%clk 0:01:56.9]} 17... Qc4 {[%clk 0:01:22]} 18. b3
{[%clk 0:01:56.1]} 18... Qxc5 {[%clk 0:01:13.5]} 19. dxc5 {[%clk 0:01:55.5]}
19... Nxe1 {[%clk 0:01:14]} 20. Ra2 {[%clk 0:01:36.1]} 20... Nd3 {[%clk
0:01:09.6]} 21. Be3 {[%clk 0:01:30.4]} 21... Rfd8 {[%clk 0:01:05.4]} 22. Rd2
{[%clk 0:01:29.1]} 22... Rd5 {[%clk 0:01:05.3]} 23. Ne1 {[%clk 0:01:14.9]} 23...
Bc3 {[%clk 0:00:54.6]} 24. Nxd3 {[%clk 0:00:40]} 24... Bxd2 {[%clk 0:00:53.9]}
25. Nf4 {[%clk 0:00:40]} 25... Rd7 {[%clk 0:00:46]} 26. h4 {[%clk 0:00:20.6]}
26... Rad8 {[%clk 0:00:26.8]} 27. Bxd2 {[%clk 0:00:20.8]} 27... Rxd2 {[%clk
0:00:27.7]} 28. Qf3 {[%clk 0:00:21.4]} 28... e5 {[%clk 0:00:15.1]} 29. Nh3
{[%clk 0:00:19.3]} 29... Bc8 {[%clk 0:00:05.6]} 30. Ng5 {[%clk 0:00:18.5]} 30...
Bf5 {[%clk 0:00:05.4]} 31. Qxc6 {[%clk 0:00:15.7]} 31... h6 {[%clk 0:00:05.1]}
32. Nf3 {[%clk 0:00:11.2]} 32... Rd1+ {[%clk 0:00:05.6]} 33. Kh2 {[%clk
0:00:11.3]} 33... e4 {[%clk 0:00:06.2]} 34. Ne5 {[%clk 0:00:11.7]} 34... R1d5
{[%clk 0:00:06.6]} 35. Qf6 {[%clk 0:00:08.9]} 35... Be6 {[%clk 0:00:03.9]} 36.
Nxg6 {[%clk 0:00:08.4]} 36... fxg6 {[%clk 0:00:02.1]} 37. Qxg6+ {[%clk
0:00:07.6]} 37... Kf8 {[%clk 0:00:01.8]} 38. Qxe6 {[%clk 0:00:07.5]} 38... Rxc5
{[%clk 0:00:01.3]} 39. Qf6+ {[%clk 0:00:07.6]} 39... Ke8 {[%clk 0:00:01.9]} 40.
Qe6+ {[%clk 0:00:08.1]} 40... Kf8 {[%clk 0:00:02.4]} 41. Qxh6+ {[%clk
0:00:08.3]} 41... Ke7 {[%clk 0:00:02.7]} 42. Qg7+ {[%clk 0:00:07.4]} 42... Kd6
{[%clk 0:00:02.8]} 43. Qxa7 {[%clk 0:00:07.2]} 43... Rdc8 {[%clk 0:00:01.9]} 44.
a5 {[%clk 0:00:06.1]} 44... Rh5 {[%clk 0:00:02.5]} 45. Qb6+ {[%clk 0:00:05.8]}
45... Rc6 {[%clk 0:00:03]} 46. Qd8+ {[%clk 0:00:05.9]} 46... Kc5 {[%clk
0:00:03.5]} 47. g3 {[%clk 0:00:05.5]} 47... e3 {[%clk 0:00:03.4]} 48. fxe3
{[%clk 0:00:05.4]} 48... Rd5 {[%clk 0:00:03.1]} 49. Qb8 {[%clk 0:00:04.8]} 49...
Rd2+ {[%clk 0:00:02.7]} 50. Kh3 {[%clk 0:00:05.1]} 50... Rcd6 {[%clk 0:00:02.2]}
51. b4+ {[%clk 0:00:05.2]} 51... Kc4 {[%clk 0:00:02.8]} 52. b5 {[%clk
0:00:04.8]} 52... Rd1 {[%clk 0:00:03.4]} 53. a6 {[%clk 0:00:04.7]} 53... Rg6
{[%clk 0:00:03.9]} 54. a7 {[%clk 0:00:04.5]} 54... Rh1+ {[%clk 0:00:03.6]} 55.
Kg2 {[%clk 0:00:05]} 55... Rc1 {[%clk 0:00:04]} 56. a8=Q {[%clk 0:00:05.1]}
56... Rc2+ {[%clk 0:00:04.9]} 57. Kh3 {[%clk 0:00:05.2]} 1-0

[Event "Early-Titled-Tuesday-Blitz-October-17-2023"]
[Site "Chess.com"]
[Date "2023.10.17"]
[Round "2"]
[White "Ural_bogatyr"]
[Black "Khuslen2008"]
[Result "1-0"]
[WhiteElo "2521"]
[BlackElo "2302"]
[TimeControl "180+1"]
[EndTime "8:20:01 PDT"]
[Termination "Ural_bogatyr won on time"]

1. d4 {[%clk 0:03:00.9]} 1... Nf6 {[%clk 0:02:59.2]} 2. Nc3 {[%clk 0:03:01.2]}
2... d5 {[%clk 0:02:58]} 3. Bf4 {[%clk 0:03:01.6]} 3... g6 {[%clk 0:02:57.7]} 4.
e3 {[%clk 0:03:01.1]} 4... Bg7 {[%clk 0:02:57.7]} 5. Nb5 {[%clk 0:03:01.7]} 5...
Na6 {[%clk 0:02:54.4]} 6. Nc3 {[%clk 0:03:01.6]} 6... Nb8 {[%clk 0:02:51.6]} 7.
Be2 {[%clk 0:03:01.3]} 7... O-O {[%clk 0:02:49.4]} 8. h3 {[%clk 0:03:01.3]} 8...
c5 {[%clk 0:02:41.6]} 9. Nf3 {[%clk 0:03:00.6]} 9... cxd4 {[%clk 0:02:10.6]} 10.
exd4 {[%clk 0:02:58.6]} 10... Nc6 {[%clk 0:02:10.6]} 11. O-O {[%clk 0:02:57.7]}
11... Bf5 {[%clk 0:02:05.4]} 12. Ne5 {[%clk 0:02:55.9]} 12... Rc8 {[%clk
0:02:04]} 13. a3 {[%clk 0:02:49.6]} 13... Qb6 {[%clk 0:01:51.6]} 14. Nxc6 {[%clk
0:02:46.2]} 14... bxc6 {[%clk 0:01:50.1]} 15. Na4 {[%clk 0:02:42.8]} 15... Qb7
{[%clk 0:01:30.1]} 16. Be5 {[%clk 0:02:39]} 16... Nd7 {[%clk 0:01:28]} 17. Bxg7
{[%clk 0:02:38.1]} 17... Kxg7 {[%clk 0:01:28.5]} 18. b4 {[%clk 0:02:38.5]} 18...
Rfe8 {[%clk 0:01:16.5]} 19. c4 {[%clk 0:02:33.9]} 19... dxc4 {[%clk 0:00:58]}
20. Bxc4 {[%clk 0:02:30.3]} 20... Nb6 {[%clk 0:00:57.7]} 21. Nc5 {[%clk
0:02:28.9]} 21... Qc7 {[%clk 0:00:57.5]} 22. Ba2 {[%clk 0:02:24.5]} 22... e5
{[%clk 0:00:49.6]} 23. dxe5 {[%clk 0:02:21.8]} 23... Qxe5 {[%clk 0:00:49.5]} 24.
Qb3 {[%clk 0:02:12.8]} 24... Nd5 {[%clk 0:00:42.3]} 25. Qa4 {[%clk 0:02:09.7]}
25... Nc3 {[%clk 0:00:39.6]} 26. Qxa7 {[%clk 0:02:06.9]} 26... Ne2+ {[%clk
0:00:38.8]} 27. Kh1 {[%clk 0:02:04.6]} 27... Qf6 {[%clk 0:00:33.5]} 28. Bc4
{[%clk 0:01:39.4]} 28... Nf4 {[%clk 0:00:32.7]} 29. Rae1 {[%clk 0:01:31]} 29...
Rxe1 {[%clk 0:00:19.7]} 30. Rxe1 {[%clk 0:01:31.9]} 30... Nxh3 {[%clk
0:00:17.8]} 31. gxh3 {[%clk 0:01:25.8]} 31... Bxh3 {[%clk 0:00:17.5]} 32. Re3
{[%clk 0:00:30.3]} 32... Bg4 {[%clk 0:00:16.9]} 33. Ne4 {[%clk 0:00:27.1]} 33...
Qh4+ {[%clk 0:00:13.2]} 34. Kg2 {[%clk 0:00:26.2]} 34... Rf8 {[%clk 0:00:12.5]}
35. Qc7 {[%clk 0:00:17]} 35... Bf5 {[%clk 0:00:12.1]} 36. Qe5+ {[%clk 0:00:16]}
36... f6 {[%clk 0:00:10.3]} 37. Qe7+ {[%clk 0:00:15.2]} 37... Kh6 {[%clk
0:00:07.9]} 38. Qxf8+ {[%clk 0:00:14.9]} 38... Kh5 {[%clk 0:00:07.4]} 39. Ng3+
{[%clk 0:00:14.6]} 39... Kg5 {[%clk 0:00:06.7]} 40. Qd6 {[%clk 0:00:08.6]} 40...
Qh3+ {[%clk 0:00:05.8]} 41. Kg1 {[%clk 0:00:08.7]} 41... h5 {[%clk 0:00:03.3]}
42. Nxf5 {[%clk 0:00:07.9]} 42... Qxf5 {[%clk 0:00:03.2]} 43. Rg3+ {[%clk
0:00:06.9]} 43... Kh6 {[%clk 0:00:03]} 44. Qd2+ {[%clk 0:00:07.4]} 44... g5
{[%clk 0:00:02.9]} 45. Bd3 {[%clk 0:00:06.8]} 45... Qe5 {[%clk 0:00:02.2]} 46.
Qe3 {[%clk 0:00:05.9]} 46... h4 {[%clk 0:00:02.4]} 47. Qxe5 {[%clk 0:00:05.5]}
47... fxe5 {[%clk 0:00:02.7]} 48. Re3 {[%clk 0:00:06.2]} 1-0

[Event "Early-Titled-Tuesday-Blitz-October-17-2023"]
[Site "Chess.com"]
[Date "2023.10.17"]
[Round "2"]
[White "iJueles"]
[Black "tarno17"]
[Result "1/2-1/2"]
[WhiteElo "2436"]
[BlackElo "2138"]
[TimeControl "180+1"]
[EndTime "8:20:09 PDT"]
[Termination "Game drawn by repetition"]

1. d4 {[%clk 0:02:59.3]} 1... d5 {[%clk 0:03:00]} 2. c4 {[%clk 0:02:59.3]} 2...
e6 {[%clk 0:02:59]} 3. Nf3 {[%clk 0:02:59.1]} 3... Nf6 {[%clk 0:02:59.3]} 4. Nc3
{[%clk 0:02:58.4]} 4... Be7 {[%clk 0:02:58.9]} 5. Bg5 {[%clk 0:02:58.4]} 5...
O-O {[%clk 0:02:59.6]} 6. e3 {[%clk 0:02:58.5]} 6... h6 {[%clk 0:03:00.3]} 7.
Bh4 {[%clk 0:02:58.1]} 7... b6 {[%clk 0:03:00.2]} 8. cxd5 {[%clk 0:02:57.9]}
8... exd5 {[%clk 0:02:59.8]} 9. Be2 {[%clk 0:02:55.4]} 9... Nbd7 {[%clk
0:02:59.1]} 10. O-O {[%clk 0:02:55.4]} 10... Bb7 {[%clk 0:02:57]} 11. Rc1 {[%clk
0:02:50.9]} 11... c5 {[%clk 0:02:51.2]} 12. Qa4 {[%clk 0:02:49.1]} 12... Ne4
{[%clk 0:02:31.9]} 13. Bxe7 {[%clk 0:02:47.5]} 13... Qxe7 {[%clk 0:02:31.2]} 14.
Rfd1 {[%clk 0:02:25.2]} 14... Ndf6 {[%clk 0:02:06]} 15. dxc5 {[%clk 0:02:18.1]}
15... Nxc3 {[%clk 0:01:35.8]} 16. Rxc3 {[%clk 0:02:18]} 16... bxc5 {[%clk
0:01:36.1]} 17. Qa3 {[%clk 0:02:18.6]} 17... Rfc8 {[%clk 0:01:30.5]} 18. Rdc1
{[%clk 0:02:15.2]} 18... Ne4 {[%clk 0:01:27.6]} 19. R3c2 {[%clk 0:02:09.7]}
19... Qf6 {[%clk 0:01:13.4]} 20. Bd3 {[%clk 0:01:46.1]} 20... Rc7 {[%clk
0:00:53.9]} 21. Bxe4 {[%clk 0:01:42.3]} 21... dxe4 {[%clk 0:00:54.8]} 22. Nd2
{[%clk 0:01:42.7]} 22... Rac8 {[%clk 0:00:52.1]} 23. Qxa7 {[%clk 0:01:25.7]}
23... Bd5 {[%clk 0:00:43.9]} 24. Qa3 {[%clk 0:01:24.9]} 24... Ra8 {[%clk
0:00:38.5]} 25. Qc3 {[%clk 0:01:20.4]} 25... Rxa2 {[%clk 0:00:20.9]} 26. Qxf6
{[%clk 0:01:10.3]} 26... gxf6 {[%clk 0:00:21.8]} 27. h3 {[%clk 0:01:01.7]} 27...
c4 {[%clk 0:00:05.3]} 28. Nxc4 {[%clk 0:00:58.8]} 28... Bxc4 {[%clk 0:00:05.7]}
29. Rxc4 {[%clk 0:00:59.2]} 29... Rxc4 {[%clk 0:00:05.9]} 30. Rxc4 {[%clk
0:01:00.1]} 30... Rxb2 {[%clk 0:00:06.8]} 31. Rxe4 {[%clk 0:01:00.8]} 31... Kg7
{[%clk 0:00:07.4]} 32. Rg4+ {[%clk 0:01:00.7]} 32... Kh7 {[%clk 0:00:06.9]} 33.
e4 {[%clk 0:01:00.6]} 33... h5 {[%clk 0:00:06.9]} 34. Rf4 {[%clk 0:01:00.8]}
34... Kg6 {[%clk 0:00:07.4]} 35. Kh2 {[%clk 0:00:58.9]} 35... Re2 {[%clk
0:00:07.7]} 36. Kg3 {[%clk 0:00:57.9]} 36... Kg5 {[%clk 0:00:08.1]} 37. Rf5+
{[%clk 0:00:57.7]} 37... Kg6 {[%clk 0:00:08.8]} 38. f3 {[%clk 0:00:58.2]} 38...
Re3 {[%clk 0:00:08.7]} 39. Kf4 {[%clk 0:00:54.6]} 39... Re2 {[%clk 0:00:09]} 40.
g3 {[%clk 0:00:54.3]} 40... Rf2 {[%clk 0:00:08.5]} 41. Rc5 {[%clk 0:00:53.1]}
41... Re2 {[%clk 0:00:08.1]} 42. Rc8 {[%clk 0:00:51.4]} 42... Rf2 {[%clk
0:00:04.1]} 43. Rh8 {[%clk 0:00:50]} 43... Rf1 {[%clk 0:00:03.6]} 44. h4 {[%clk
0:00:39.7]} 44... Rf2 {[%clk 0:00:03.5]} 45. Ke3 {[%clk 0:00:36.6]} 45... Rf1
{[%clk 0:00:03.6]} 46. Rg8+ {[%clk 0:00:33.4]} 46... Kh7 {[%clk 0:00:03.3]} 47.
Rf8 {[%clk 0:00:34]} 47... Kg7 {[%clk 0:00:03.7]} 48. Rb8 {[%clk 0:00:34]} 48...
Re1+ {[%clk 0:00:04.3]} 49. Kf4 {[%clk 0:00:34]} 49... Rf1 {[%clk 0:00:04.8]}
50. Rb2 {[%clk 0:00:33.3]} 50... Kg6 {[%clk 0:00:05.1]} 51. Ke3 {[%clk
0:00:31.2]} 51... Re1+ {[%clk 0:00:05.6]} 52. Kf2 {[%clk 0:00:31.4]} 52... Rh1
{[%clk 0:00:05.4]} 53. Rb5 {[%clk 0:00:30.2]} 53... Rh2+ {[%clk 0:00:05.5]} 54.
Ke3 {[%clk 0:00:30.4]} 54... Rh1 {[%clk 0:00:05.8]} 55. f4 {[%clk 0:00:29.3]}
55... Re1+ {[%clk 0:00:05.6]} 56. Kf2 {[%clk 0:00:29.7]} 56... Rc1 {[%clk
0:00:05.5]} 57. f5+ {[%clk 0:00:26.9]} 57... Kg7 {[%clk 0:00:05.4]} 58. Rb3
{[%clk 0:00:23.5]} 58... Rc4 {[%clk 0:00:04.4]} 59. Kf3 {[%clk 0:00:23.6]} 59...
Kh6 {[%clk 0:00:04.2]} 60. Rb8 {[%clk 0:00:22.5]} 60... Rc3+ {[%clk 0:00:04]}
61. Kf4 {[%clk 0:00:22.6]} 61... Kg7 {[%clk 0:00:03.1]} 62. g4 {[%clk
0:00:20.5]} 62... hxg4 {[%clk 0:00:03.1]} 63. Kxg4 {[%clk 0:00:21.4]} 63... Re3
{[%clk 0:00:02.6]} 64. Re8 {[%clk 0:00:19.5]} 64... Re1 {[%clk 0:00:02.6]} 65.
h5 {[%clk 0:00:17.9]} 65... Rg1+ {[%clk 0:00:03]} 66. Kf4 {[%clk 0:00:18.4]}
66... Rh1 {[%clk 0:00:03]} 67. Kg4 {[%clk 0:00:18]} 67... Rg1+ {[%clk
0:00:03.5]} 68. Kh4 {[%clk 0:00:17.9]} 68... Rh1+ {[%clk 0:00:04.2]} 69. Kg4
{[%clk 0:00:18.5]} 69... Rg1+ {[%clk 0:00:05]} 1/2-1/2

[Event "Early-Titled-Tuesday-Blitz-October-17-2023"]
[Site "Chess.com"]
[Date "2023.10.17"]
[Round "2"]
[White "Lion-Al-Messi"]
[Black "esrosenberg"]
[Result "1-0"]
[WhiteElo "2648"]
[BlackElo "2383"]
[TimeControl "180+1"]
[EndTime "8:20:14 PDT"]
[Termination "Lion-Al-Messi won on time"]

1. e4 {[%clk 0:03:00.9]} 1... e5 {[%clk 0:02:59.9]} 2. Nf3 {[%clk 0:03:01]} 2...
Nc6 {[%clk 0:03:00.5]} 3. Bb5 {[%clk 0:03:01.1]} 3... Nf6 {[%clk 0:03:01.1]} 4.
O-O {[%clk 0:03:00.9]} 4... Nxe4 {[%clk 0:03:01.2]} 5. d4 {[%clk 0:03:01]} 5...
Nd6 {[%clk 0:03:01.7]} 6. Bxc6 {[%clk 0:03:01.2]} 6... dxc6 {[%clk 0:03:02.3]}
7. dxe5 {[%clk 0:03:02.1]} 7... Nf5 {[%clk 0:03:02.8]} 8. Qxd8+ {[%clk
0:03:02.6]} 8... Kxd8 {[%clk 0:03:03.7]} 9. Nc3 {[%clk 0:03:01.6]} 9... Ne7
{[%clk 0:03:03.8]} 10. Be3 {[%clk 0:02:53.8]} 10... Ke8 {[%clk 0:03:03.5]} 11.
Rad1 {[%clk 0:02:53.7]} 11... Ng6 {[%clk 0:03:00.8]} 12. h3 {[%clk 0:02:52.9]}
12... Be7 {[%clk 0:02:55.1]} 13. Rd2 {[%clk 0:02:50.9]} 13... Be6 {[%clk
0:02:48.1]} 14. Rfd1 {[%clk 0:02:50.5]} 14... Rd8 {[%clk 0:02:47.3]} 15. Rxd8+
{[%clk 0:02:50.4]} 15... Bxd8 {[%clk 0:02:47.5]} 16. Bxa7 {[%clk 0:02:48.6]}
16... b6 {[%clk 0:02:47.6]} 17. a4 {[%clk 0:02:48.1]} 17... h6 {[%clk 0:02:25]}
18. b4 {[%clk 0:02:44]} 18... Ke7 {[%clk 0:02:25]} 19. a5 {[%clk 0:02:41.7]}
19... Bc4 {[%clk 0:02:23.1]} 20. axb6 {[%clk 0:02:26.4]} 20... cxb6 {[%clk
0:02:23.1]} 21. Na4 {[%clk 0:02:26.5]} 21... Bd5 {[%clk 0:02:12.3]} 22. Nxb6
{[%clk 0:02:19.3]} 22... Bxf3 {[%clk 0:01:59.4]} 23. gxf3 {[%clk 0:02:20.2]}
23... Nxe5 {[%clk 0:01:59.9]} 24. Nc8+ {[%clk 0:02:12.1]} 24... Ke6 {[%clk
0:01:53.9]} 25. f4 {[%clk 0:02:10.4]} 25... Nf3+ {[%clk 0:01:39.1]} 26. Kg2
{[%clk 0:02:06.5]} 26... Nh4+ {[%clk 0:01:39.1]} 27. Kf1 {[%clk 0:02:04.6]}
27... Bc7 {[%clk 0:01:31.1]} 28. Re1+ {[%clk 0:02:02.4]} 28... Kd7 {[%clk
0:01:30.1]} 29. Ne7 {[%clk 0:02:01.7]} 29... Bxf4 {[%clk 0:01:25.8]} 30. Bc5
{[%clk 0:02:01.8]} 30... Re8 {[%clk 0:01:14.8]} 31. Rd1+ {[%clk 0:01:59]} 31...
Kc7 {[%clk 0:01:15.1]} 32. Ra1 {[%clk 0:01:57.8]} 32... Kd7 {[%clk 0:01:06]} 33.
Ra7+ {[%clk 0:01:56.2]} 33... Ke6 {[%clk 0:01:06.5]} 34. Nxc6 {[%clk 0:01:53.7]}
34... Kd5 {[%clk 0:00:58.4]} 35. Nd4 {[%clk 0:01:44.5]} 35... Kc4 {[%clk
0:00:56.3]} 36. Rxf7 {[%clk 0:01:41.7]} 36... g5 {[%clk 0:00:55.5]} 37. Ne2
{[%clk 0:01:17.3]} 37... Bd2 {[%clk 0:00:49.2]} 38. f4 {[%clk 0:01:11.6]} 38...
Bxb4 {[%clk 0:00:46.2]} 39. Bxb4 {[%clk 0:01:11.3]} 39... Kxb4 {[%clk
0:00:46.7]} 40. fxg5 {[%clk 0:01:11.6]} 40... hxg5 {[%clk 0:00:47.6]} 41. Kf2
{[%clk 0:01:10.9]} 41... Kc4 {[%clk 0:00:41]} 42. Rc7+ {[%clk 0:01:10.2]} 42...
Kd5 {[%clk 0:00:38.4]} 43. Rg7 {[%clk 0:01:10.2]} 43... Re5 {[%clk 0:00:36.7]}
44. Ng3 {[%clk 0:01:06.8]} 44... Kc4 {[%clk 0:00:34.9]} 45. Rc7+ {[%clk
0:01:05]} 45... Kb4 {[%clk 0:00:35.2]} 46. c3+ {[%clk 0:01:02]} 46... Kb5 {[%clk
0:00:33.8]} 47. Ne2 {[%clk 0:00:58.4]} 47... Kb6 {[%clk 0:00:33.8]} 48. Rg7
{[%clk 0:00:53.9]} 48... Rf5+ {[%clk 0:00:28.3]} 49. Ke3 {[%clk 0:00:36.4]}
49... Re5+ {[%clk 0:00:27.6]} 50. Kd3 {[%clk 0:00:36.3]} 50... Kc5 {[%clk
0:00:22.2]} 51. Nd4 {[%clk 0:00:33.1]} 51... Kb6 {[%clk 0:00:14.5]} 52. c4
{[%clk 0:00:31.5]} 52... Ra5 {[%clk 0:00:11.6]} 53. Nb3 {[%clk 0:00:28.1]} 53...
Rf5 {[%clk 0:00:10]} 54. c5+ {[%clk 0:00:24.8]} 54... Ka6 {[%clk 0:00:10.3]} 55.
Kc4 {[%clk 0:00:23.5]} 55... Rf4+ {[%clk 0:00:09.2]} 56. Kd5 {[%clk 0:00:22.7]}
56... Rf3 {[%clk 0:00:08.4]} 57. Nd4 {[%clk 0:00:21]} 57... Rxh3 {[%clk
0:00:08.1]} 58. c6 {[%clk 0:00:16.7]} 58... Rd3 {[%clk 0:00:06.7]} 59. Rf7
{[%clk 0:00:10.9]} 59... Kb6 {[%clk 0:00:02.8]} 60. Rb7+ {[%clk 0:00:09.9]}
60... Ka6 {[%clk 0:00:02.9]} 61. Rb4 {[%clk 0:00:09.1]} 61... Nf5 {[%clk
0:00:02.5]} 62. Kc5 {[%clk 0:00:09.4]} 62... Rxd4 {[%clk 0:00:02.1]} 63. Rb1
{[%clk 0:00:06]} 1-0